bitfinex/quotes_SOLUSD_20250904
["timestamp","ask_amount","ask_price","bid_price","bid_amount"]
[1756998827363,45.1,204.3,204.29,0.03]
[1756998827538,56.03256709,204.3,204.29,0.03]
[1756998827949,56.71256709,204.3,204.29,0.03]
[1756998828351,11.61256709,204.3,204.29,0.03]
[1756998828641,101.1829237,204.3,204.29,0.03]
[1756998829243,86.11549079,204.3,204.19,0.03]
[1756998829433,10.93256709,204.2,204.19,0.03]
[1756998829631,45.02,204.2,204.19,0.03]
[1756998829859,10.93256709,204.21,204.19,0.03]
[1756998830057,45.02,204.2,204.19,0.74]
[1756998830364,55.95256709,204.2,204.19,0.03]
[1756998830664,49.91715964,204.2,204.19,0.03]
[1756998830857,60.84972673,204.2,204.19,0.03]
[1756998832142,15.82972673,204.2,204.19,0.03]
[1756998832543,60.72972673,204.2,204.19,0.03]
[1756998832938,60.70972673,204.2,204.19,0.03]
[1756998833135,61.38972673,204.2,204.19,0.03]
[1756998833342,4.89715964,204.2,204.19,0.03]
[1756998833544,60.70972673,204.2,204.19,0.03]
[1756998833764,15.82972673,204.2,204.19,0.03]
[1756998834072,44.86,204.2,204.19,0.74]
[1756998834248,15.82947781,204.22,204.19,0.74]
[1756998834572,10.93256709,204.2,204.19,0.03]
[1756998834861,49.73715964,204.2,204.19,0.03]
[1756998835068,60.66972673,204.2,204.19,0.03]
[1756998836064,44.76,204.2,204.19,0.03]
[1756998836270,10.93256709,204.2,204.19,0.03]
[1756998836755,44.82,204.2,204.19,0.03]
[1756998837259,55.75256709,204.2,204.19,0.03]
[1756998837852,44.82,204.2,204.19,0.03]
[1756998838047,44.82,204.2,204.19,0.74]
[1756998838557,44.78,204.2,204.19,0.74]
[1756998838953,44.78,204.2,204.19,0.03]
[1756998839145,55.71256709,204.2,204.19,0.03]
[1756998839344,44.78,204.2,204.19,0.03]
[1756998839544,56.39256709,204.2,204.19,0.03]
[1756998839951,61.28972673,204.2,204.19,0.03]
[1756998840154,50.35715964,204.2,204.19,0.03]
[1756998840355,61.20972673,204.2,204.19,0.03]
[1756998842047,26.0,204.17,204.16,1e-08]
[1756998842265,70.6,204.17,204.16,1e-08]
[1756998842574,70.6,204.17,204.06,0.71]
[1756998842575,45.48,204.17,204.06,0.71]
[1756998842889,26.0,204.14,204.07,0.71]
[1756998843072,46.22,204.13,204.07,0.71]
[1756998843381,46.22,204.13,204.04,0.71]
[1756998843774,10.93256709,204.07,204.04,0.71]
[1756998843946,26.68,204.14,204.04,0.71]
[1756998843947,57.21256709,204.06,204.04,0.71]
[1756998844152,57.21256709,204.05,203.99,0.71]
[1756998844354,46.28,204.05,204.0,1.21]
[1756998844554,46.28,204.05,204.01,0.71]
[1756998844766,46.28,204.05,204.02,0.71]
[1756998845086,57.21256709,204.05,204.02,0.71]
[1756998845256,46.28,204.05,204.02,0.71]
[1756998845452,57.21256709,204.05,204.02,0.71]
[1756998845646,46.28,204.05,204.02,0.71]
[1756998845955,10.93256709,204.04,204.02,0.71]
[1756998846148,46.22,204.03,204.02,0.71]
[1756998846353,46.22,204.03,204.0,0.5]
[1756998846665,46.22,204.03,204.01,0.71]
[1756998846867,46.22,204.03,204.02,0.71]
[1756998847366,46.12,204.03,204.02,11.64256709]
[1756998847574,46.12,204.03,204.02,0.71]
[1756998848084,46.14,204.03,204.02,16.54404733]
[1756998848286,46.14,204.03,204.02,5.61148024]
[1756998848449,46.14,204.03,204.02,0.71]
[1756998848655,46.14,204.03,204.0,0.5]
[1756998848877,57.07256709,204.03,204.0,0.5]
[1756998849068,57.07256709,204.03,204.0,1.21]
[1756998849357,46.14,204.03,204.01,11.64256709]
[1756998849577,46.14,204.03,204.02,11.64256709]
[1756998850282,46.14,204.03,204.02,0.71]
[1756998851161,46.14,204.03,204.0,0.5]
[1756998852009,46.14,204.03,204.0,1.21]
[1756998852157,46.14,204.03,204.0,0.5]
[1756998852352,0.65,204.09,204.02,10.93256709]
[1756998852556,10.93256709,204.07,204.02,11.60256709]
[1756998852779,45.94,204.06,204.03,11.60256709]
[1756998853194,4.89907897,204.12,204.04,11.60256709]
[1756998853393,4.89787921,204.17,204.09,10.93256709]
[1756998853689,45.9,204.16,204.04,26.0]
[1756998853861,10.93256709,204.1,204.06,0.67]
[1756998854185,45.88,204.09,204.04,15.83356689]
[1756998854389,10.93256709,204.08,204.04,0.67]
[1756998854557,45.88,204.09,204.05,0.67]
[1756998854756,45.88,204.09,204.06,0.67]
[1756998854969,45.88,204.09,204.07,0.67]
[1756998855176,45.88,204.09,204.07,11.60256709]
[1756998855351,45.88,204.09,204.03,4.90119499]
[1756998855352,45.88,204.09,204.08,11.60256709]
[1756998855759,0.65,204.19,204.08,11.60256709]
[1756998855971,45.8,204.18,204.08,0.67]
[1756998856171,10.93256709,204.16,204.1,15.83206132]
[1756998856393,50.69768332,204.18,204.1,4.89949423]
[1756998856682,45.8,204.18,204.12,10.93256709]
[1756998856984,45.72,204.17,204.15,10.93256709]
[1756998857178,45.72,204.17,204.16,11.60256709]
[1756998857361,45.72,204.18,204.16,11.60256709]
[1756998857574,45.72,204.19,204.17,11.60256709]
[1756998857788,45.72,204.19,204.18,11.60256709]
[1756998858087,45.72,204.19,204.18,16.50020642]
[1756998858480,45.72,204.19,204.14,12.24622324]
[1756998858481,45.72,204.19,204.17,10.93256709]
[1756998858667,45.72,204.19,204.18,10.93256709]
[1756998858860,45.72,204.19,204.18,11.60256709]
[1756998859058,45.72,204.19,204.18,10.93256709]
[1756998859267,45.72,204.19,204.18,0.67]
[1756998859455,45.72,204.19,204.14,17.1450965]
[1756998859456,45.72,204.19,204.17,10.93256709]
[1756998859680,45.78,204.19,204.18,0.67]
[1756998859882,45.78,204.19,204.18,10.93256709]
[1756998860062,45.78,204.19,204.14,4.898599]
[1756998860264,45.78,204.19,204.14,15.83116609]
[1756998860462,45.78,204.19,204.15,0.67]
[1756998860787,45.78,204.19,204.15,11.60256709]
[1756998861083,45.78,204.19,204.15,10.93256709]
[1756998861266,45.78,204.19,204.17,10.93256709]
[1756998861588,45.78,204.19,204.14,4.898599]
[1756998861765,45.78,204.19,204.16,10.93256709]
[1756998861963,45.78,204.19,204.16,11.60256709]
[1756998862163,45.78,204.19,204.16,16.50058703]
[1756998862360,45.78,204.19,204.14,15.83114521]
[1756998862887,45.78,204.19,204.16,10.93256709]
[1756998863661,45.78,204.19,204.17,10.93256709]
[1756998863972,45.78,204.19,204.18,11.60256709]
[1756998864164,45.78,204.19,204.18,16.50020642]
[1756998864789,0.06,204.19,204.18,16.50020642]
[1756998864995,0.06,204.19,204.18,30.09580043]
[1756998865161,45.4,204.25,204.24,10.93256709]
[1756998865895,45.4,204.25,204.24,11.60256709]
[1756998866075,0.06,204.31,204.24,11.60256709]
[1756998866258,45.32,204.29,204.28,10.93256709]
[1756998866661,45.32,204.29,204.19,0.67]
[1756998866662,56.90256709,204.29,204.19,0.67]
[1756998866968,45.97,204.29,204.23,10.93256709]
[1756998867283,56.90256709,204.29,204.22,0.67]
[1756998867489,45.32,204.29,204.24,7.25895475]
[1756998867685,45.32,204.29,204.25,7.25895475]
[1756998867867,0.65,204.28,204.2,0.67]
[1756998868188,7.90895475,204.28,204.22,7.25895475]
[1756998868493,7.90895475,204.28,204.23,7.25895475]
[1756998869086,0.65,204.27,204.17,4.89766907]
[1756998869286,4.89524871,204.28,204.16,0.67]
[1756998869287,7.25895475,204.24,204.16,0.67]
[1756998869497,45.4,204.23,204.18,7.25895475]
[1756998869783,7.25895475,204.21,204.15,12.15730321]
[1756998870168,7.90895475,204.22,204.17,7.25895475]
[1756998870369,7.90895475,204.22,204.17,12.15660175]
[1756998870574,45.4,204.23,204.17,12.15660175]
[1756998870778,52.65895475,204.23,204.18,0.67]
[1756998871200,53.30895475,204.23,204.17,12.15660175]
[1756998871501,5.54573773,204.26,204.18,7.25895475]
[1756998871671,45.28,204.22,204.19,7.25895475]
[1756998872166,45.28,204.22,204.18,7.25895475]
[1756998872362,45.28,204.22,204.18,12.15636583]
[1756998872573,45.28,204.22,204.18,4.89741108]
[1756998872776,45.28,204.22,204.18,12.15636583]
[1756998873791,7.25895475,204.26,204.2,7.25895475]
[1756998873996,45.14,204.25,204.2,7.25895475]
[1756998874207,45.79,204.25,204.2,7.25895475]
[1756998874673,0.65,204.29,204.22,7.25895475]
[1756998874872,45.04,204.28,204.21,0.67]
[1756998875085,7.90895475,204.27,204.22,7.25895475]
[1756998875287,7.25895475,204.25,204.2,7.25895475]
[1756998875585,7.90895475,204.24,204.19,7.25895475]
[1756998875793,0.65,204.28,204.23,7.25895475]
[1756998875973,45.0,204.25,204.23,7.25895475]
[1756998876801,44.98,204.26,204.24,7.25895475]
[1756998877105,44.94,204.26,204.25,7.25895475]
[1756998877902,0.65,204.3,204.25,7.25895475]
[1756998878108,44.88,204.29,204.28,7.25895475]
[1756998878911,0.06,204.31,204.28,7.25895475]
[1756998879216,0.06,204.31,204.29,7.25895475]
[1756998879217,44.9,204.3,204.29,7.25895475]
[1756998879381,44.82,204.3,204.29,7.25895475]
[1756998879583,0.06,204.28,204.26,4.89572113]
[1756998879780,0.06,204.28,204.27,0.67]
[1756998880609,0.06,204.28,204.27,7.92895475]
[1756998880982,0.06,204.28,204.27,7.25895475]
[1756998882100,0.06,204.28,204.27,7.92895475]
[1756998882914,0.06,204.28,204.27,0.67]
[1756998883108,0.06,204.28,204.27,7.25895475]
[1756998883814,0.06,204.28,204.27,12.15443622]
[1756998884513,0.06,204.3,204.27,12.82443622]
[1756998884821,0.06,204.3,204.27,0.67]
[1756998884996,0.06,204.3,204.25,1.96140927]
[1756998885196,0.06,204.3,204.29,7.25895475]
[1756998885899,0.76,204.3,204.24,38.15513049]
[1756998886102,0.06,204.3,204.29,7.25895475]
[1756998888396,0.06,204.3,204.29,12.15395695]
[1756998889125,0.06,204.3,204.29,12.82395695]
[1756998889600,0.06,204.3,204.29,12.15395695]
[1756998889800,0.06,204.31,204.29,12.82395695]
[1756998890010,0.06,204.31,204.3,33.92895475]
[1756998892023,0.06,204.31,204.3,38.82371735]
[1756998892315,0.06,204.34,204.3,51.06062386]
[1756998892508,0.06,204.34,204.33,7.25895475]
[1756998892896,0.06,204.34,204.33,7.92895475]
[1756998893327,0.06,204.34,204.33,12.82299869]
[1756998894530,0.2,204.37,204.36,26.0]
[1756998895235,0.2,204.37,204.36,26.67]
[1756998895418,0.2,204.37,204.36,46.081235]
[1756998898326,0.2,204.37,204.36,30.8933255]
[1756998898505,0.2,204.37,204.36,45.411235]
[1756998899108,0.2,204.37,204.36,38.15228025]
[1756998899513,0.2,204.37,204.36,45.411235]
[1756998900322,0.06,204.4,204.36,71.91014277]
[1756998900525,0.06,204.4,204.39,7.25895475]
[1756998900821,0.06,204.4,204.39,26.0]
[1756998900998,0.06,204.4,204.39,33.25895475]
[1756998901202,0.06,204.4,204.39,26.0]
[1756998901397,0.06,204.4,204.39,2.89871517]
[1756998901803,0.06,204.4,204.39,28.89871517]
[1756998902031,0.06,204.4,204.39,26.0]
[1756998902326,0.06,204.4,204.39,28.89871517]
[1756998902504,0.06,204.4,204.39,2.89871517]
[1756998903009,0.06,204.4,204.39,3.56871517]
[1756998903212,0.06,204.4,204.38,26.0]
[1756998903399,0.06,204.4,204.39,7.79132244]
[1756998903719,0.06,204.4,204.35,1.96054405]
[1756998903928,0.06,204.4,204.39,2.89871517]
[1756998904404,0.76,204.4,204.39,2.89871517]
[1756998904620,0.06,204.4,204.39,2.89871517]
[1756998905027,0.06,204.4,204.39,14.49357585]
[1756998905234,0.06,204.4,204.39,2.89871517]
[1756998905423,0.06,204.4,204.38,4.89284665]
[1756998905606,0.06,204.4,204.39,2.89871517]
[1756998906518,0.06,204.4,204.39,15.16357585]
[1756998906921,0.06,204.42,204.41,26.0]
[1756998907225,0.06,204.42,204.41,28.89871517]
[1756998907443,0.06,204.43,204.42,26.0]
[1756998907730,0.06,204.43,204.42,29.56871517]
[1756998908548,0.06,204.45,204.43,26.0]
[1756998908748,0.06,204.45,204.44,2.89871517]
[1756998909053,0.06,204.45,204.44,3.56871517]
[1756998909425,0.2,204.46,204.44,8.46012585]
[1756998909748,0.2,204.46,204.43,26.0]
[1756998909749,0.9,204.46,204.43,26.0]
[1756998909922,0.9,204.46,204.45,2.89871517]
[1756998910119,0.7,204.45,204.44,2.89871517]
[1756998910531,0.2,204.46,204.44,2.89871517]
[1756998910820,0.9,204.46,204.42,4.8918457]
[1756998911038,0.9,204.46,204.45,2.89871517]
[1756998911238,0.9,204.46,204.42,4.8918457]
[1756998911441,0.7,204.45,204.44,2.89871517]
[1756998911751,0.2,204.46,204.4,17.12327387]
[1756998911939,0.2,204.46,204.45,2.89871517]
[1756998912621,0.92,204.46,204.45,2.89871517]
[1756998912960,0.2,204.46,204.45,2.89871517]
[1756998913140,0.92,204.46,204.44,2.89871517]
[1756998913334,0.72,204.45,204.43,2.89871517]
[1756998913937,0.2,204.46,204.42,4.8917823]
[1756998914247,0.2,204.46,204.38,1.96025581]
[1756998914248,0.72,204.44,204.4,2.89871517]
[1756998914424,0.2,204.46,204.43,2.89871517]
[1756998914625,0.2,204.46,204.45,2.89871517]
[1756998914831,0.2,204.46,204.43,2.89871517]
[1756998915035,0.72,204.45,204.41,2.89871517]
[1756998915322,0.72,204.44,204.41,2.89871517]
[1756998915543,0.2,204.46,204.42,2.89871517]
[1756998915740,0.92,204.46,204.45,2.89871517]
[1756998916138,0.2,204.46,204.45,2.89871517]
[1756998917462,0.2,204.46,204.45,3.56871517]
[1756998917633,0.2,204.46,204.45,7.7898866]
[1756998918233,0.2,204.46,204.45,4.89117143]
[1756998918435,0.2,204.46,204.45,7.7898866]
[1756998918641,0.92,204.46,204.45,2.89871517]
[1756998918838,3.81871517,204.46,204.38,12.2318755]
[1756998919154,0.72,204.45,204.42,2.89871517]
[1756998919352,0.2,204.46,204.39,4.89260727]
[1756998919651,0.72,204.45,204.42,4.89172138]
[1756998919859,0.2,204.46,204.43,7.24572395]
[1756998920050,0.72,204.45,204.43,7.24572395]
[1756998920753,0.72,204.44,204.39,7.24572395]
[1756998920949,0.72,204.43,204.39,7.24572395]
[1756998921145,0.72,204.43,204.4,7.24572395]
[1756998921346,0.2,204.46,204.42,7.24572395]
[1756998921530,0.2,204.46,204.45,7.24572395]
[1756998921855,0.2,204.46,204.44,7.24572395]
[1756998922635,0.2,204.46,204.45,7.24572395]
[1756998923249,0.2,204.46,204.45,7.91572395]
[1756998923638,0.2,204.46,204.43,0.67]
[1756998923838,0.2,204.46,204.45,7.24572395]
[1756998924757,0.92,204.46,204.4,30.8923679]
[1756998924940,0.72,204.45,204.42,7.24572395]
[1756998925151,0.72,204.44,204.42,7.24572395]
[1756998925452,0.92,204.46,204.42,7.24572395]
[1756998925651,0.92,204.46,204.37,38.23219191]
[1756998925652,0.72,204.45,204.37,38.23219191]
[1756998925843,0.2,204.46,204.39,0.67]
[1756998926153,0.2,204.46,204.45,7.24572395]
[1756998926540,0.2,204.46,204.45,7.91572395]
[1756998927552,0.2,204.46,204.45,10.92591813]
[1756998927749,0.2,204.46,204.45,15.81708956]
[1756998929043,0.2,204.46,204.45,16.48708956]
[1756998929645,0.2,204.46,204.45,30.08268357]
[1756998929861,0.06,204.47,204.45,30.08268357]
[1756998930066,0.06,204.47,204.46,11.59591813]
[1756998930443,1e-08,204.48,204.47,39.59559401]
[1756998930755,1e-08,204.49,204.47,51.19151214]
[1756998930956,1e-08,204.5,204.49,13.59559401]
[1756998931258,1e-08,204.5,204.49,24.52151214]
[1756998931453,0.2,204.58,204.52,26.0]
[1756998931653,0.2,204.58,204.57,10.92591813]
[1756998931850,0.2,204.58,204.57,15.81422042]
[1756998932940,0.2,204.58,204.57,5.55830229]
[1756998933254,0.92,204.58,204.55,26.0]
[1756998933459,0.92,204.58,204.53,4.88925829]
[1756998933647,0.72,204.57,204.56,10.92591813]
[1756998933846,0.72,204.57,204.46,56.76653078]
[1756998934107,0.72,204.56,204.52,10.92591813]
[1756998934260,0.72,204.55,204.53,10.92591813]
[1756998934457,5.08821192,204.58,204.53,10.92591813]
[1756998934458,0.72,204.54,204.53,10.92591813]
[1756998934657,0.72,204.54,204.52,10.92591813]
[1756998934861,0.72,204.56,204.52,10.92591813]
[1756998935061,0.72,204.56,204.53,10.92591813]
[1756998935243,0.2,204.58,204.55,10.92591813]
[1756998935444,0.72,204.57,204.53,10.92591813]
[1756998935656,0.72,204.56,204.52,10.92591813]
[1756998935861,4.88901926,204.54,204.5,10.92591813]
[1756998936071,0.72,204.53,204.48,4.89036126]
[1756998936365,0.72,204.53,204.51,10.92591813]
[1756998936744,0.72,204.52,204.5,0.03]
[1756998937264,11.64591813,204.52,204.5,0.03]
[1756998937466,0.72,204.51,204.5,0.03]
[1756998938356,0.72,204.54,204.5,0.03]
[1756998938561,43.28,204.54,204.5,0.03]
[1756998938768,0.72,204.53,204.52,10.92591813]
[1756998938942,0.72,204.56,204.52,10.92591813]
[1756998939145,0.72,204.55,204.52,10.92591813]
[1756998939346,43.48,204.58,204.54,10.92591813]
[1756998939545,0.72,204.57,204.54,10.92591813]
[1756998939770,0.72,204.56,204.54,10.92591813]
[1756998939957,0.72,204.55,204.51,4.88973644]
[1756998940153,5.0880724,204.58,204.51,4.88973644]
[1756998940154,0.2,204.58,204.52,10.92591813]
[1756998940360,0.2,204.58,204.55,10.92591813]
[1756998940567,0.2,204.58,204.52,0.67]
[1756998941073,0.2,204.58,204.55,10.92591813]
[1756998941260,0.92,204.58,204.55,10.92591813]
[1756998941869,0.2,204.58,204.55,10.92591813]
[1756998942053,0.2,204.58,204.56,4.88854125]
[1756998942565,0.2,204.58,204.57,10.92591813]
[1756998942751,0.2,204.58,204.56,5.59854125]
[1756998942957,0.2,204.58,204.57,10.92591813]
[1756998943163,0.2,204.58,204.57,37.63591813]
[1756998943564,0.2,204.58,204.57,26.0]
[1756998943770,0.2,204.58,204.57,36.92591813]
[1756998944070,0.2,204.58,204.57,41.81422042]
[1756998944275,0.2,204.58,204.57,31.59830229]
[1756998944468,0.2,204.58,204.57,41.81422042]
[1756998945556,0.2,204.58,204.57,42.52422042]
[1756998947473,0.2,204.58,204.57,41.81422042]
[1756998947974,0.2,204.58,204.57,45.1938963]
[1756998948158,0.2,204.58,204.57,56.11981443]
[1756998948877,0.2,204.58,204.57,30.11981443]
[1756998950193,0.2,204.61,204.6,26.0]
[1756998950369,0.2,204.61,204.6,50.52151214]
[1756998950573,0.2,204.61,204.6,51.23151214]
[1756998951262,0.2,204.61,204.6,40.30559401]
[1756998951466,0.2,204.61,204.6,51.23151214]
[1756998951958,0.2,204.61,204.6,39.59559401]
[1756998952153,0.2,204.61,204.6,55.40909767]
[1756998952478,0.2,204.61,204.6,56.11909767]
[1756998953375,1e-08,204.61,204.6,56.11909767]
[1756998954170,1e-08,204.61,204.6,45.19317954]
[1756998954371,1e-08,204.61,204.6,56.11909767]
[1756998955457,1e-08,204.61,204.6,56.60785622]
[1756998956370,1e-08,204.63,204.6,32.08634408]
[1756998956573,1e-08,204.63,204.62,24.52151214]
[1756998956975,1e-08,204.63,204.62,13.59559401]
[1756998957157,1e-08,204.63,204.6,4.88758553]
[1756998957375,1e-08,204.63,204.62,26.0]
[1756998957562,1e-08,204.63,204.62,36.92591813]
[1756998957782,1e-08,204.63,204.62,26.0]
[1756998957963,0.67000001,204.63,204.6,4.88758553]
[1756998958277,0.67,204.62,204.61,26.0]
[1756998958460,0.67,204.62,204.61,30.88734665]
[1756998959078,1e-08,204.63,204.61,30.88734665]
[1756998959281,0.67000001,204.63,204.61,30.88734665]
[1756998959679,1e-08,204.63,204.61,30.88734665]
[1756998959890,1e-08,204.63,204.61,41.81326478]
[1756998960089,0.67000001,204.63,204.61,30.88734665]
[1756998960279,1e-08,204.63,204.61,26.0]
[1756998960677,0.67000001,204.63,204.61,26.0]
[1756998960880,0.67,204.62,204.54,0.71]
[1756998961276,0.67,204.62,204.57,10.92591813]
[1756998961579,1e-08,204.63,204.59,10.92591813]
[1756998961784,0.67,204.62,204.57,26.0]
[1756998961976,0.67,204.61,204.57,36.92591813]
[1756998962177,1e-08,204.63,204.57,36.92591813]
[1756998962376,1e-08,204.63,204.59,10.92591813]
[1756998962588,0.67000001,204.63,204.59,15.81362386]
[1756998962784,11.59591813,204.62,204.58,4.88803658]
[1756998962984,0.67,204.61,204.57,30.88825733]
[1756998963180,0.67,204.6,204.57,30.88825733]
[1756998965294,0.67,204.59,204.57,26.0]
[1756998965478,0.67,204.58,204.53,10.92591813]
[1756998965680,11.59591813,204.62,204.56,10.92591813]
[1756998965971,10.92591813,204.62,204.57,10.92591813]
[1756998966299,0.67,204.61,204.56,10.92591813]
[1756998966505,0.67000001,204.63,204.59,4.88782442]
[1756998966793,0.67000001,204.63,204.6,10.92591813]
[1756998967691,0.67000001,204.63,204.61,10.92591813]
[1756998967902,1e-08,204.63,204.61,10.92591813]
[1756998968403,1e-08,204.63,204.62,10.92591813]
[1756998968610,1e-08,204.63,204.62,15.81302593]
[1756998968777,1e-08,204.63,204.62,30.11861994]
[1756998969384,1e-08,204.63,204.62,19.19270181]
[1756998969597,1e-08,204.63,204.62,30.11861994]
[1756998971998,1e-08,204.63,204.62,18.48270181]
[1756998972203,1e-08,204.63,204.62,29.40861994]
[1756998972384,1e-08,204.63,204.62,30.06861994]
[1756998972585,1e-08,204.63,204.62,18.48270181]
[1756998973019,1e-08,204.63,204.62,30.8871078]
[1756998974602,1e-08,204.63,204.62,41.81302593]
[1756998975115,0.06,204.65,204.64,39.59559401]
[1756998975282,0.06,204.65,204.64,51.01017515]
[1756998975485,0.06,204.65,204.64,51.18151214]
[1756998975790,0.06,204.65,204.64,56.1703884]
[1756998976190,0.06,204.65,204.64,58.12805389]
[1756998976405,0.06,204.65,204.64,53.13917763]
[1756998977215,0.06,204.65,204.64,58.0258078]
[1756998977423,0.06,204.65,204.64,55.40814231]
[1756998977622,0.06,204.65,204.64,4.88663017]
[1756998977919,0.06,204.65,204.64,56.06814231]
[1756998978712,10.92591813,204.77,204.68,26.0]
[1756998978912,10.92591813,204.77,204.71,10.92591813]
[1756998979218,10.92591813,204.77,204.72,15.81049353]
[1756998979422,0.2,204.86,204.76,10.92591813]
[1756998979633,0.2,204.86,204.77,10.92591813]
[1756998979634,10.92591813,204.83,204.77,10.92591813]
[1756998979911,10.92591813,204.79,204.73,10.92591813]
[1756998980131,10.92591813,204.79,204.71,40.67818089]
[1756998980132,10.92591813,204.76,204.71,10.92591813]
[1756998980288,10.92591813,204.74,204.69,36.92591813]
[1756998980886,10.92591813,204.75,204.7,10.92591813]
[1756998981121,10.92591813,204.76,204.7,10.92591813]
[1756998981298,10.92591813,204.74,204.69,36.92591813]
[1756998981491,4.51668377,204.74,204.69,35.40211585]
[1756998981902,4.51668377,204.74,204.69,30.51668377]
[1756998982097,4.51668377,204.74,204.69,26.0]
[1756998982303,0.66,204.73,204.63,4.88686898]
[1756998982493,0.66,204.73,204.65,4.51668377]
[1756998982694,4.51668377,204.71,204.65,30.51668377]
[1756998982921,5.17668377,204.73,204.67,4.51668377]
[1756998983104,4.51668377,204.72,204.66,4.51668377]
[1756998983315,4.51668377,204.72,204.67,26.0]
[1756998983497,0.66,204.73,204.67,30.88586255]
[1756998983701,4.51668377,204.72,204.67,35.40254632]
[1756998983905,0.66,204.73,204.67,35.40254632]
[1756998984215,0.66,204.73,204.63,12.21664722]
[1756998984216,4.51668377,204.72,204.66,35.40281518]
[1756998984417,0.66,204.73,204.66,35.40281518]
[1756998984715,4.51668377,204.72,204.67,4.51668377]
[1756998985220,4.8844505,204.74,204.67,4.51668377]
[1756998985399,4.51668377,204.72,204.67,9.40246419]
[1756998985803,42.44,204.78,204.7,4.51668377]
[1756998986007,4.51668377,204.76,204.7,4.51668377]
[1756998986399,0.66,204.76,204.67,30.88578042]
[1756998986599,4.51668377,204.73,204.67,35.40246419]
[1756998987304,4.51668377,204.73,204.67,30.88578042]
[1756998987511,4.51668377,204.74,204.69,4.51668377]
[1756998988017,4.51668377,204.74,204.67,30.88578042]
[1756998988224,4.51668377,204.71,204.65,18.11227778]
[1756998988515,4.51668377,204.72,204.65,13.59559401]
[1756998988713,4.51668377,204.73,204.65,13.59559401]
[1756998988924,4.51668377,204.73,204.68,4.51668377]
[1756998989301,0.66,204.75,204.68,4.51668377]
[1756998989510,5.54410036,204.75,204.67,7.77709087]
[1756998989703,0.06,204.72,204.68,2.89117696]
[1756998989900,0.06,204.72,204.69,2.89117696]
[1756998990110,0.06,204.72,204.68,3.55117696]
[1756998990319,0.06,204.72,204.67,4.88591391]
[1756998990320,0.06,204.72,204.71,26.0]
[1756998990619,0.06,204.72,204.71,28.89117696]
[1756998990798,0.06,204.72,204.71,29.55117696]
[1756998991402,0.06,204.72,204.71,34.43613617]
[1756998992204,0.06,204.72,204.71,48.03173018]
[1756998992413,0.06,204.72,204.71,33.77613617]
[1756998992643,0.06,204.72,204.71,26.0]
[1756998993221,0.06,204.72,204.68,4.88565683]
[1756998993222,3.61117696,204.72,204.68,4.88565683]
[1756998993526,3.55117696,204.71,204.67,4.88591391]
[1756998993726,3.55117696,204.7,204.66,26.0]
[1756998994223,4.94478156,204.72,204.66,26.0]
[1756998994411,0.06,204.72,204.66,28.89117696]
[1756998994608,2.89117696,204.71,204.66,28.89117696]
[1756998994813,0.06,204.72,204.68,2.89117696]
[1756998995220,3.61117696,204.72,204.67,2.89117696]
[1756998995439,3.61117696,204.72,204.66,33.7772219]
[1756998996512,2.89117696,204.7,204.65,26.0]
[1756998996710,4.94479872,204.72,204.64,2.92117696]
[1756998996711,5.60479872,204.72,204.64,2.92117696]
[1756998996907,2.89117696,204.7,204.64,2.92117696]
[1756998997120,5.60479872,204.72,204.65,2.89117696]
[1756998997322,5.60479872,204.72,204.64,26.03]
[1756998997523,2.89117696,204.7,204.65,7.77740562]